lending/lending_fUSD_20250114
["ID","MTS","AMOUNT","RATE_DAILY","PERIOD"]
[348886495,1736854239120,-500.0,9.966e-05,2]
[348886496,1736854239129,-433.77478169,9.966e-05,2]
[348886497,1736854239164,-66.22521831,9.966e-05,2]
[348886498,1736854239173,-500.0,9.966e-05,2]
[348886499,1736854239183,-500.0,9.966e-05,2]
[348886500,1736854239193,-500.0,9.966e-05,2]
[348886501,1736854239202,-612.33,9.966e-05,2]
[348886502,1736854239212,-500.0,9.966e-05,2]
[348886503,1736854239221,-1445.36,9.966e-05,2]
[348886504,1736854239231,-500.0,9.966e-05,2]
[348886505,1736854239240,-1852.9,9.966e-05,2]
[348886506,1736854239250,-1557.46,9.966e-05,2]
[348886507,1736854239259,-781.46,9.966e-05,2]
[348886508,1736854239484,-500.0,9.966e-05,2]
[348886509,1736854239498,-583.03,9.966e-05,2]
[348886510,1736854239509,-500.0,9.966e-05,2]
[348886511,1736854239518,-3247.72,9.966e-05,2]
[348886512,1736854239528,-574.66,9.966e-05,2]
[348886513,1736854239537,-500.0,9.966e-05,2]
[348886514,1736854239547,-1387.73,9.966e-05,2]
[348886515,1736854239557,-500.0,9.966e-05,2]
[348886516,1736854239566,-743.94,9.966e-05,2]
[348886517,1736854239576,-1211.9,9.967e-05,2]
[348886518,1736854239586,-1026.14,9.967e-05,2]
[348886519,1736854239595,-619.2,9.967e-05,2]
[348886520,1736854239605,-1772.41,9.967e-05,2]
[348886521,1736854239614,-1148.94,9.967e-05,2]
[348886522,1736854239624,-980.36,9.967e-05,2]
[348886523,1736854239633,-1448.97,9.967e-05,2]
[348886524,1736854239643,-500.0,9.967e-05,2]
[348886525,1736854239652,-2079.46,9.967e-05,2]
[348886526,1736854239661,-3731.35,9.967e-05,2]
[348886527,1736854239671,-3514.8,9.967e-05,2]
[348886528,1736854239681,-2026.39,9.967e-05,2]
[348886529,1736854239690,-937.00489155,9.967e-05,2]
[348886530,1736854239699,-2602.61,9.967e-05,2]
[348886531,1736854239708,-1554.61,9.967e-05,2]
[348886532,1736854239718,-500.0,9.967e-05,2]
[348886533,1736854239727,-1344.12,9.967e-05,2]
[348886534,1736854239737,-3576.51,9.967e-05,2]
[348886535,1736854239746,-1514.75,9.967e-05,2]
[348886536,1736854239755,-1107.881881,9.967e-05,2]
[348886537,1736854239765,-2879.52,9.967e-05,2]
[348886538,1736854239775,-500.0,9.967e-05,2]
[348886539,1736854239784,-500.0,9.967e-05,2]
[348886540,1736854239794,-1257.58,9.967e-05,2]
[348886541,1736854239804,-500.0,9.967e-05,2]
[348886542,1736854239813,-157.91840654,9.967e-05,2]
[348886543,1736854239823,-902.482974,9.967e-05,2]
[348886544,1736854239832,-500.0,9.967e-05,2]
[348886545,1736854239842,-500.0,9.967e-05,2]
[348886546,1736854239853,-1223.15,9.967e-05,2]
[348886547,1736854239863,-500.0,9.967e-05,2]
[348886548,1736854239872,-258.3090093,9.967e-05,2]
[348886549,1736854239883,-3095.27,9.967e-05,2]
[348886550,1736854239893,-390.09541743,9.967e-05,2]
[348886551,1736854239907,-500.0,9.967e-05,2]
[348886552,1736854239918,-500.0,9.967e-05,2]
[348886553,1736854239928,-500.0,9.967e-05,2]
[348886554,1736854239939,-500.0,9.967e-05,2]
[348886555,1736854239950,-500.0,9.967e-05,2]
[348886556,1736854239960,-1220.71,9.967e-05,2]
[348886557,1736854239970,-500.0,9.967e-05,2]
[348886558,1736854239983,-500.0,9.967e-05,2]
[348886559,1736854239992,-750.48,9.967e-05,2]
[348886560,1736854240002,-500.0,9.967e-05,2]
[348886561,1736854240013,-2226.23,9.967e-05,2]
[348886562,1736854240022,-500.0,9.968e-05,2]
[348886563,1736854240033,-500.0,9.968e-05,2]
[348886564,1736854240043,-490.0,9.968e-05,2]
[348886565,1736854240052,-500.0,9.968e-05,2]
[348886566,1736854240061,-500.0,9.968e-05,2]
[348886567,1736854240071,-500.0,9.968e-05,2]
[348886568,1736854240080,-500.0,9.968e-05,2]
[348886569,1736854240089,-500.0,9.968e-05,2]
[348886570,1736854240099,-500.0,9.968e-05,2]
[348886571,1736854240108,-500.0,9.968e-05,2]
[348886572,1736854240118,-500.0,9.968e-05,2]
[348886573,1736854240127,-500.0,9.968e-05,2]
[348886574,1736854240137,-500.0,9.968e-05,2]
[348886575,1736854240147,-500.0,9.968e-05,2]
[348886576,1736854240156,-500.0,9.968e-05,2]
[348886577,1736854240165,-605.26,9.968e-05,2]
[348886578,1736854240174,-527.91,9.968e-05,2]
[348886579,1736854240183,-806.95,9.968e-05,2]
[348886580,1736854240192,-601.38,9.968e-05,2]
[348886581,1736854240201,-862.35,9.968e-05,2]
[348886583,1736854240210,-610.71,9.968e-05,2]
[348886584,1736854240219,-787.45,9.968e-05,2]
[348886585,1736854240228,-500.0,9.968e-05,2]
[348886586,1736854240237,-800.11,9.968e-05,2]
[348886587,1736854240245,-500.0,9.968e-05,2]
[348886588,1736854240254,-500.0,9.968e-05,2]
[348886589,1736854240263,-500.0,9.968e-05,2]
[348886590,1736854240272,-500.0,9.968e-05,2]
[348886591,1736854240280,-500.0,9.968e-05,2]
[348886592,1736854240291,-500.0,9.968e-05,2]
[348886593,1736854240300,-903.56,9.968e-05,2]
[348886594,1736854240309,-500.0,9.968e-05,2]
[348886595,1736854240318,-500.0,9.968e-05,2]
[348886596,1736854240327,-728.63,9.968e-05,2]
[348886597,1736854240337,-500.0,9.968e-05,2]
[348886598,1736854240346,-658.87,9.968e-05,2]
[348886599,1736854240355,-754.71,9.968e-05,2]
[348886600,1736854240364,-544.52,9.968e-05,2]
[348886601,1736854240374,-377.44811858,9.968e-05,2]
[348886602,1736854240384,-500.0,9.968e-05,2]
[348886603,1736854240394,-500.0,9.968e-05,2]
[348886604,1736854240404,-500.0,9.968e-05,2]
[348886605,1736854240414,-839.7,9.968e-05,2]
[348886606,1736854240424,-500.0,9.968e-05,2]
[348886607,1736854240435,-500.0,9.968e-05,2]
[348886608,1736854240445,-779.51,9.968e-05,2]
[348886609,1736854240455,-500.0,9.968e-05,2]
[348886610,1736854240466,-500.0,9.968e-05,2]
[348886611,1736854240475,-500.0,9.968e-05,2]
[348886612,1736854240484,-500.0,9.968e-05,2]
[348886613,1736854240495,-954.28,9.968e-05,2]
[348886614,1736854240506,-965.75,9.968e-05,2]
[348886615,1736854240516,-500.0,9.968e-05,2]
[348886616,1736854240527,-591.42,9.968e-05,2]
[348886617,1736854240539,-500.0,9.968e-05,2]
[348886618,1736854240551,-257.42722067,9.968e-05,2]
[348886619,1736854240561,-973.74,9.968e-05,2]
[348886620,1736854240571,-500.0,9.968e-05,2]
[348886621,1736854240581,-229.43426445,9.968e-05,2]
[348886622,1736854240590,-500.0,9.968e-05,2]
[348886623,1736854240599,-500.0,9.968e-05,2]
[348886624,1736854240608,-500.0,9.968e-05,2]
[348886625,1736854240617,-829.91,9.968e-05,2]
[348886626,1736854240627,-500.0,9.968e-05,2]
[348886627,1736854240639,-532.6974371,9.968e-05,2]
[348886628,1736854240648,-500.0,9.968e-05,2]
[348886629,1736854240657,-500.0,9.968e-05,2]
[348886630,1736854240667,-761.07,9.968e-05,2]
[348886631,1736854240676,-643.41,9.968e-05,2]
[348886632,1736854240685,-677.98,9.968e-05,2]
[348886633,1736854240695,-500.0,9.968e-05,2]
[348886634,1736854240705,-869.4,9.968e-05,2]
[348886635,1736854240714,-506.43584541,9.968e-05,2]
[348886636,1736854240724,-670.32,9.968e-05,2]
[348886637,1736854240734,-500.0,9.968e-05,2]
[348886638,1736854240744,-2650.28,9.968e-05,2]
[348886639,1736854240755,-500.0,9.968e-05,2]
[348886640,1736854240766,-693.44,9.968e-05,2]
[348886641,1736854240776,-500.0,9.968e-05,2]
[348886642,1736854240786,-1339.47,9.968e-05,2]
[348886643,1736854240795,-1277.28,9.968e-05,2]
[348886644,1736854240805,-500.0,9.968e-05,2]
[348886645,1736854240814,-2464.36,9.968e-05,2]
[348886646,1736854240824,-6667.99,9.968e-05,2]
[348886647,1736854240835,-943.23,9.968e-05,2]
[348886648,1736854240844,-500.0,9.968e-05,2]
[348886649,1736854240854,-834.97,9.968e-05,2]
[348886650,1736854240864,-1016.07,9.968e-05,2]
[348886651,1736854240874,-836.43,9.968e-05,2]
[348886652,1736854240884,-500.0,9.968e-05,2]
[348886653,1736854240894,-1187.82,9.968e-05,2]
[348886654,1736854240906,-522.12,9.968e-05,2]
[348886655,1736854240916,-5679.26,9.968e-05,2]
[348886656,1736854240925,-770.29,9.968e-05,2]
[348886657,1736854240934,-2322.5,9.968e-05,2]
[348886658,1736854240946,-392.28160829,9.968e-05,2]
[348886659,1736854240958,-500.0,9.968e-05,2]
[348886660,1736854240968,-500.0,9.968e-05,2]
[348886661,1736854240981,-2224.81,9.968e-05,2]
[348886662,1736854240992,-500.0,9.968e-05,2]
[348886663,1736854241002,-500.0,9.968e-05,2]
[348886664,1736854241012,-3560.86,9.968e-05,2]
[348886665,1736854241021,-3424.4,9.968e-05,2]
[348886666,1736854241031,-500.0,9.968e-05,2]
[348886667,1736854241041,-1267.09,9.968e-05,2]
[348886668,1736854241052,-500.0,9.968e-05,2]
[348886669,1736854241063,-500.0,9.968e-05,2]
[348886670,1736854241072,-4367.79,9.968e-05,2]
[348886671,1736854241082,-653.05,9.968e-05,2]
[348886672,1736854241092,-633.43,9.968e-05,2]
[348886673,1736854241101,-500.0,9.968e-05,2]
[348886674,1736854241110,-500.0,9.968e-05,2]
[348886675,1736854241119,-500.0,9.968e-05,2]
[348886676,1736854241128,-1959.99,9.968e-05,2]
[348886677,1736854241138,-500.0,9.968e-05,2]
[348886678,1736854241149,-500.0,9.968e-05,2]
[348886679,1736854241158,-937.00489151,9.969e-05,2]
[348886680,1736854241168,-500.0,9.969e-05,2]
[348886681,1736854241178,-800.0,9.969e-05,2]
[348886682,1736854241189,-1326.66,9.969e-05,2]
[348886683,1736854241202,-1694.96,9.969e-05,2]
[348886684,1736854241211,-500.0,9.969e-05,2]
[348886685,1736854241220,-1000.0,9.969e-05,2]
[348886686,1736854241231,-904.15,9.969e-05,2]
[348886687,1736854241240,-500.0,9.969e-05,2]
[348886688,1736854241249,-2312.1,9.969e-05,2]
[348886689,1736854241259,-937.00489151,9.97e-05,2]
[348886690,1736854241268,-937.00489151,9.972e-05,2]
[348886691,1736854241278,-1171.0,9.973e-05,2]
[348886692,1736854241287,-506.34607973,9.973e-05,2]
[348886693,1736854241297,-500.0,9.973e-05,2]
[348886694,1736854241307,-151.89119695,9.973e-05,2]
[348886695,1736854241317,-500.0,9.973e-05,2]
[348886696,1736854241327,-501.93397283,9.973e-05,2]
[348886697,1736854241336,-937.00489151,9.974e-05,2]
[348886698,1736854241345,-500.0,9.975e-05,2]
[348886699,1736854241354,-500.0,9.975e-05,2]
[348886700,1736854241363,-500.0,9.975e-05,2]
[348886701,1736854241373,-600.82,9.975e-05,2]
[348886702,1736854241382,-284.84867517,9.975e-05,2]
[348886703,1736854241392,-500.0,9.975e-05,2]
[348886704,1736854241401,-500.0,9.975e-05,2]
[348886705,1736854241411,-500.0,9.975e-05,2]
[348886706,1736854241420,-511.72043616,9.975e-05,2]
[348886707,1736854241430,-500.0,9.975e-05,2]
[348886708,1736854241439,-500.0,9.975e-05,2]
[348886709,1736854241448,-500.0,9.975e-05,2]
[348886710,1736854241457,-500.0,9.975e-05,2]
[348886711,1736854241467,-500.0,9.975e-05,2]
[348886712,1736854241476,-500.0,9.975e-05,2]
[348886713,1736854241486,-500.0,9.975e-05,2]
[348886714,1736854241495,-500.0,9.975e-05,2]
[348886715,1736854241505,-500.0,9.975e-05,2]
[348886716,1736854241514,-500.0,9.975e-05,2]
[348886717,1736854241523,-500.0,9.975e-05,2]
[348886718,1736854241533,-500.0,9.975e-05,2]
[348886719,1736854241542,-3630.163,9.975e-05,2]
[348886720,1736854241551,-179.194,9.975e-05,2]
[348886721,1736854241562,-500.0,9.975e-05,2]
[348886722,1736854241572,-321.2994457,9.975e-05,2]
[348886723,1736854241582,-324.81618882,9.975e-05,2]
[348886724,1736854241592,-500.0,9.975e-05,2]
[348886725,1736854241601,-500.0,9.975e-05,2]
[348886726,1736854241611,-500.0,9.975e-05,2]
[348886727,1736854241620,-504.26457366,9.975e-05,2]
[348886728,1736854241630,-1020.61,9.975e-05,2]
[348886729,1736854241640,-500.0,9.975e-05,2]
[348886730,1736854241649,-500.0,9.975e-05,2]
[348886731,1736854241659,-500.0,9.975e-05,2]
[348886732,1736854241668,-453.03,9.975e-05,2]
[348886733,1736854241678,-500.0,9.975e-05,2]
[348886734,1736854241687,-500.0,9.975e-05,2]
[348886735,1736854241697,-500.0,9.975e-05,2]
[348886736,1736854241706,-500.0,9.975e-05,2]
[348886737,1736854241715,-500.0,9.975e-05,2]
[348886738,1736854241724,-500.0,9.975e-05,2]
[348886739,1736854241734,-500.0,9.975e-05,2]
[348886740,1736854241744,-500.0,9.975e-05,2]
[348886741,1736854241753,-500.0,9.975e-05,2]
[348886742,1736854241763,-500.0,9.975e-05,7]
[348886743,1736854241772,-2676.11,9.975e-05,2]
[348886744,1736854241783,-500.0,9.975e-05,2]
[348886745,1736854241795,-500.0,9.975e-05,2]
[348886746,1736854241804,-500.0,9.975e-05,2]
[348886747,1736854241813,-500.0,9.975e-05,2]
[348886748,1736854241823,-2729.76,9.975e-05,2]
[348886749,1736854241833,-500.0,9.975e-05,2]
[348886750,1736854241843,-500.0,9.975e-05,2]
[348886751,1736854241853,-500.0,9.975e-05,2]
[348886752,1736854241863,-500.0,9.975e-05,2]
[348886753,1736854241873,-500.0,9.975e-05,2]
[348886754,1736854241883,-500.0,9.975e-05,2]
[348886755,1736854241892,-668.06,9.975e-05,2]
[348886756,1736854241904,-500.0,9.975e-05,2]
[348886757,1736854241914,-500.0,9.975e-05,2]
[348886758,1736854241924,-500.0,9.975e-05,2]
[348886759,1736854241935,-500.0,9.975e-05,2]
[348886760,1736854241947,-500.0,9.975e-05,2]
[348886761,1736854241956,-965.39,9.975e-05,2]
[348886762,1736854241966,-500.0,9.975e-05,2]
[348886763,1736854241975,-500.0,9.975e-05,2]
[348886764,1736854241986,-500.0,9.975e-05,2]
[348886765,1736854241997,-500.0,9.975e-05,2]
[348886766,1736854242007,-500.0,9.975e-05,2]
[348886767,1736854242018,-500.0,9.975e-05,2]
[348886768,1736854242027,-500.0,9.975e-05,2]
[348886769,1736854242037,-500.0,9.975e-05,2]
[348886770,1736854242048,-937.00489151,9.975e-05,2]
[348886771,1736854242059,-72312.63886251,9.975e-05,2]
[348886772,1736854242069,-1069.2,9.976e-05,2]
[348886773,1736854242081,-3037.88,9.976e-05,2]
[348886774,1736854242091,-500.0,9.976e-05,2]
[348886775,1736854242107,-3253.68,9.976e-05,2]
[348886776,1736854242117,-1339.05,9.976e-05,2]
[348886777,1736854242127,-1860.27,9.976e-05,2]
[348886778,1736854242137,-2371.9,9.976e-05,2]
[348886779,1736854242146,-1298.11,9.976e-05,2]
[348886780,1736854242155,-3248.02,9.976e-05,2]
[348886781,1736854242165,-1956.91,9.976e-05,2]
[348886782,1736854242176,-3954.58,9.976e-05,2]
[348886783,1736854242186,-3105.77,9.976e-05,2]
[348886784,1736854242196,-937.00489151,9.977e-05,2]
[348886785,1736854242214,-367891.23799022,9.977e-05,2]
[348886786,1736854242224,-8208.205171,9.978e-05,2]
[348886787,1736854242234,-937.00489151,9.978e-05,2]
[348886788,1736854242243,-372.93707595,9.979e-05,2]
[348886789,1736854242253,-18635.97811116,9.979e-05,2]
[348886790,1736854242264,-2512.35895771,9.98e-05,2]
[348886791,1736854242276,-218158.14055754,9.98e-05,2]
[348886792,1736854242285,-937.00489151,9.98e-05,2]
[348886793,1736854242297,-12253.64875932,9.981e-05,2]
[348886794,1736854242308,-18635.97811116,9.981e-05,2]
[348886795,1736854242318,-937.00489151,9.982e-05,2]
[348886796,1736854242329,-372.93707595,9.982e-05,2]
[348886797,1736854242341,-937.00489151,9.983e-05,2]
[348886798,1736854242351,-8208.205171,9.984e-05,2]
[348886799,1736854242360,-2512.35895771,9.984e-05,2]
[348886800,1736854242369,-937.00489151,9.985e-05,2]
[348886801,1736854242378,-2512.35895771,9.986e-05,2]
[348886802,1736854242389,-18635.97811116,9.986e-05,2]
[348886803,1736854242398,-372.93707595,9.986e-05,2]
[348886804,1736854242408,-2512.35895771,9.986e-05,2]
[348886805,1736854242417,-937.00489151,9.987e-05,2]
[348886806,1736854242426,-372.93707595,9.987e-05,2]
[348886807,1736854242435,-367891.23799022,9.987e-05,2]
[348886808,1736854242444,-12253.64875932,9.987e-05,2]
[348886809,1736854242454,-94976.53226204,9.987e-05,2]
[348886810,1736854242463,-200.0,9.988e-05,2]
[348886811,1736854242472,-31083.20146589,9.988e-05,2]
[348886812,1736854242482,-937.00489151,9.988e-05,2]
[348886813,1736854242493,-94976.53226204,9.989e-05,2]
[348886814,1736854242503,-18635.97811116,9.989e-05,2]
[348886815,1736854242512,-937.00489151,9.99e-05,2]
[348886816,1736854242523,-367891.23799022,9.99e-05,2]
[348886817,1736854242531,-170.82799609,9.99e-05,2]
[348886818,1736854242543,-94976.53226204,9.991e-05,2]
[348886819,1736854242552,-937.00489151,9.991e-05,2]
[348886820,1736854242562,-94976.53226204,9.992e-05,2]
[348886821,1736854242572,-12253.64875932,9.992e-05,2]
[348886822,1736854242582,-18635.97811116,9.992e-05,2]
[348886823,1736854242592,-701.9357835,9.992e-05,2]
[348886824,1736854242601,-150.1718998,9.992e-05,2]
[348886825,1736854242610,-166.1081366,9.992e-05,2]
[348886826,1736854242619,-359.388816,9.992e-05,2]
[348886827,1736854242629,-308.9117538,9.992e-05,2]
[348886828,1736854242638,-219.9670228,9.992e-05,2]
[348886829,1736854242648,-455.9495293,9.992e-05,2]
[348886830,1736854242657,-233.1981506,9.992e-05,2]
[348886831,1736854242669,-150.4737972,9.992e-05,2]
[348886832,1736854242678,-240.7952604,9.992e-05,2]
[348886833,1736854242687,-672.8866928,9.993e-05,2]
[348886834,1736854242696,-643.8376021,9.993e-05,2]
[348886835,1736854242705,-150.1718998,9.993e-05,2]
[348886836,1736854242714,-150.1718998,9.993e-05,2]
[348886837,1736854242724,-166.1081366,9.993e-05,2]
[348886838,1736854242734,-166.1081366,9.993e-05,2]
[348886839,1736854242743,-209.3516603,9.993e-05,2]
[348886840,1736854242751,-198.7362978,9.993e-05,2]
[348886841,1736854242761,-433.9459151,9.993e-05,2]
[348886842,1736854242771,-411.9423008,9.993e-05,2]
[348886843,1736854242780,-221.9442686,9.993e-05,2]
[348886844,1736854242790,-210.6903867,9.993e-05,2]
[348886845,1736854242799,-230.0020223,9.993e-05,2]
[348886846,1736854242808,-219.2087842,9.993e-05,2]
[348886847,1736854242817,-937.00489151,9.993e-05,2]
[348886848,1736854242827,-12253.64875932,9.994e-05,2]
[348886849,1736854242837,-500.0,9.994e-05,2]
[348886850,1736854242847,-94976.53226204,9.994e-05,2]
[348886851,1736854242856,-8208.205171,9.994e-05,2]
[348886852,1736854242866,-367891.23799022,9.994e-05,2]
[348886853,1736854242875,-2512.35895771,9.994e-05,2]
[348886854,1736854242884,-937.00489151,9.995e-05,2]
[348886855,1736854242893,-12253.64875932,9.995e-05,2]
[348886856,1736854242905,-8208.205171,9.996e-05,2]
[348886857,1736854242914,-937.00489151,9.996e-05,2]
[348886858,1736854242923,-150.0,9.996e-05,2]
[348886859,1736854242933,-635.0,9.996e-05,2]
[348886860,1736854242942,-566.0,9.996e-05,2]
[348886861,1736854242953,-1862.0,9.996e-05,2]
[348886862,1736854242962,-820.0,9.996e-05,2]
[348886863,1736854242972,-2945.0,9.996e-05,2]
[348886864,1736854242982,-1259.0,9.996e-05,2]
[348886865,1736854242991,-906.0,9.996e-05,2]
[348886866,1736854243000,-3979.0,9.996e-05,2]
[348886867,1736854243010,-537.0,9.996e-05,2]
[348886868,1736854243019,-150.0,9.996e-05,2]
[348886869,1736854243028,-1268.0,9.996e-05,2]
[348886870,1736854243036,-2016.0,9.996e-05,2]
[348886871,1736854243046,-3897.0,9.996e-05,2]
[348886872,1736854243056,-637.0,9.996e-05,2]
[348886873,1736854243065,-210.64207761,9.997e-05,2]
[348886874,1736854243074,-200.0,9.997e-05,2]
[348886875,1736854243083,-2512.35895771,9.997e-05,2]
[348886876,1736854243092,-372.93707595,9.998e-05,2]
[348886877,1736854243101,-1632494.23992956,9.998e-05,2]
[348886878,1736854243147,-880.82102011,9.998e-05,2]
[348886879,1736854243158,-5396.81027992,9.998e-05,2]
[348886887,1736854243418,-192300.93516534,9.998e-05,2]
[348886888,1736854243430,-4087.96471758,9.998e-05,2]
[348886889,1736854243441,-321.965,9.998e-05,2]
[348886890,1736854243972,-1014.7457404,9.98e-05,2]
[348886891,1736854243982,-4569.24215429,9.998e-05,2]
[348886892,1736854244000,-366.73480645,9.998e-05,2]
[348886893,1736854244011,-416.86001906,9.998e-05,2]
[348886897,1736854246448,-361.01047954,9.968e-05,2]
[348886898,1736854246461,-133.39645727,9.968e-05,2]
[348886899,1736854246470,-406.76899604,9.998e-05,2]
[348886900,1736854246495,-9431.15148106,9.998e-05,2]
[348886901,1736854246641,-2602.99497111,9.998e-05,2]
[348886902,1736854246788,-965.91,9.998e-05,2]
[348886936,1736854522753,181.33,7.2e-05,2]
[348886937,1736854532223,-417701.65085841,0.000189,30]
[348886938,1736854532260,-600.0,0.00019,30]
[348886939,1736854549181,2700.74,8.219e-05,2]
[348886944,1736854769218,403.9861467,0.00013698,30]
[348886959,1736855318247,1000.0,0.00023,120]
[348886960,1736855319260,1000.0,0.00023,120]
[348886961,1736855320191,1000.0,0.00023,120]
[348886962,1736855320971,1000.0,0.00023,120]
[348886963,1736855321729,1000.0,0.00023,120]
[348886964,1736855324925,1000.0,0.00023,120]
[348886965,1736855325878,1000.0,0.00023,120]
[348886966,1736855326926,1000.0,0.00023,120]
[348886967,1736855327305,1000.0,0.00023,120]
[348886968,1736855328960,1000.0,0.00023,120]
[348886969,1736855329635,1000.0,0.00023,120]
[348886970,1736855330395,1000.0,0.00023,120]
[348886971,1736855331066,1000.0,0.00023,120]
[348886972,1736855331707,1000.0,0.00023,120]
[348886973,1736855332550,1000.0,0.00023,120]
[348887014,1736855431573,-250.0,8.94e-05,2]
[348887015,1736855431582,-217.34,8.957e-05,2]
[348887016,1736855431591,-250.0,8.988e-05,2]
[348887017,1736855431600,-219.0,8.991e-05,2]
[348887018,1736855431609,-300.0,8.991e-05,2]
[348887019,1736855431618,-9876.68331165,8.992e-05,2]
[348887020,1736855431630,-10447.57668835,8.992e-05,2]
[348887021,1736855431639,-197.02,8.997e-05,2]
[348887022,1736855431648,-150.0,9e-05,2]
[348887023,1736855431657,-243.86018597,9e-05,2]
[348887024,1736855431667,-150.0,9e-05,2]
[348887025,1736855431677,-150.0,9e-05,2]
[348887026,1736855431686,-414.41,9e-05,2]
[348887027,1736855431695,-1000.0,9.005e-05,2]
[348887028,1736855431704,-250.0,9.005e-05,2]
[348887029,1736855431713,-768.24,9.046e-05,2]
[348887030,1736855431722,-161.54,9.5e-05,2]
[348887031,1736855431731,-1819.9347,9.867e-05,2]
[348887032,1736855431740,-2935.6123,9.867e-05,2]
[348887033,1736855431749,-2036.4353,9.867e-05,2]
[348887034,1736855431758,-416.5589,9.868e-05,2]
[348887035,1736855431767,-2500.0,9.886e-05,2]
[348887036,1736855431776,-420.0,9.891e-05,2]
[348887037,1736855431785,-3235.3951468,9.897e-05,2]
[348887038,1736855431797,-1764.6048532,9.897e-05,2]
[348887039,1736855431806,-776.13132413,9.964e-05,2]
[348887040,1736855431815,-1881.17219998,9.965e-05,2]
[348887041,1736855431824,-150.0,9.965e-05,2]
[348887042,1736855431833,-1565.1,9.966e-05,2]
[348887043,1736855431843,-854.08,9.966e-05,2]
[348887044,1736855431852,-2553.24,9.966e-05,2]
[348887045,1736855431861,-500.0,9.966e-05,2]
[348887046,1736855431870,-766.66,9.966e-05,2]
[348887047,1736855431879,-1271.38,9.966e-05,2]
[348887048,1736855431888,-1624.34,9.966e-05,2]
[348887049,1736855431898,-1223.07,9.966e-05,2]
[348887050,1736855431907,-500.0,9.966e-05,2]
[348887051,1736855431916,-507.3728702,9.966e-05,2]
[348887052,1736855431926,-938.0,9.966e-05,2]
[348887053,1736855431936,-1000.0,9.966e-05,2]
[348887054,1736855431945,-1489.63,9.966e-05,2]
[348887055,1736855431954,-866.48,9.966e-05,2]
[348887056,1736855431963,-3103.51,9.966e-05,2]
[348887057,1736855431972,-1250.97,9.966e-05,2]
[348887058,1736855431983,-500.0,9.966e-05,2]
[348887059,1736855431994,-7416.63,9.966e-05,2]
[348887060,1736855432003,-2215.76,9.966e-05,2]
[348887061,1736855432012,-1760.57,9.966e-05,2]
[348887062,1736855432021,-500.0,9.967e-05,2]
[348887063,1736855432031,-500.0,9.967e-05,2]
[348887064,1736855432039,-500.0,9.967e-05,2]
[348887065,1736855432048,-276.69333836,9.967e-05,2]
[348887066,1736855432060,-223.30666164,9.967e-05,2]
[348887067,1736855432069,-259.73333836,9.967e-05,2]
[348887091,1736855432440,-240.26666164,9.967e-05,2]
[348887092,1736855432449,-3112.68,9.967e-05,2]
[348887093,1736855432458,-613.89626264,9.967e-05,2]
[348887094,1736855432467,-508.88257232,9.967e-05,2]
[348887095,1736855432477,-500.0,9.967e-05,2]
[348887096,1736855432486,-500.24016253,9.967e-05,2]
[348887097,1736855432495,-1875.37,9.967e-05,2]
[348887098,1736855432503,-3789.81,9.967e-05,2]
[348887099,1736855432513,-500.0,9.967e-05,2]
[348887101,1736855432523,-500.0,9.967e-05,2]
[348887103,1736855432531,-500.0,9.967e-05,2]
[348887105,1736855432541,-500.0,9.967e-05,2]
[348887107,1736855432550,-500.0,9.967e-05,2]
[348887109,1736855432560,-2976.36,9.967e-05,2]
[348887111,1736855432570,-500.0,9.967e-05,2]
[348887113,1736855432580,-500.0,9.967e-05,7]
[348887115,1736855432589,-500.0,9.967e-05,2]
[348887117,1736855432598,-500.0,9.967e-05,2]
[348887119,1736855432607,-500.0,9.967e-05,2]
[348887121,1736855432617,-216.29434087,9.967e-05,2]
[348887125,1736855432647,-283.70565913,9.967e-05,2]
[348887127,1736855432655,-27.57757165,9.967e-05,2]
[348887132,1736855432693,-318.90363514,9.967e-05,2]
[348887593,1736855437720,-3391.4924,9.896e-05,2]
[348887594,1736855437730,-153.51879321,9.967e-05,2]
[348887595,1736855437739,-397.45126738,9.967e-05,2]
[348887596,1736855437879,-102.54873262,9.967e-05,2]
[348887597,1736855437889,-500.0,9.967e-05,2]
[348887598,1736855437899,-802.05,9.967e-05,2]